bitfinex/quotes_BTCUSD_20251215
["timestamp","ask_amount","ask_price","bid_price","bid_amount"]
[1765833137328,0.24486939,85760.0,85759.0,0.08166]
[1765833138211,0.24486939,85760.0,85759.0,0.08266]
[1765833140758,0.23320623,85761.0,85759.0,0.08266]
[1765833140964,0.23320623,85761.0,85760.0,0.08166]
[1765833141719,0.24486134,85763.0,85760.0,0.31486883]
[1765833141881,0.01305976,85765.0,85762.0,0.07066017]
[1765833142227,0.01165827,85776.0,85769.0,0.03305]
[1765833142380,0.01165908,85770.0,85767.0,0.01165949]
[1765833142583,0.01165908,85770.0,85766.0,0.01165963]
[1765833142767,0.01165936,85768.0,85763.0,0.04861]
[1765833142969,0.23319807,85764.0,85762.0,0.02595]
[1765833143210,0.23320079,85763.0,85762.0,0.02695]
[1765833143442,0.23320079,85763.0,85762.0,0.02595]
[1765833143731,0.23320079,85763.0,85762.0,0.059]
[1765833143887,0.23320079,85763.0,85762.0,0.10761]
[1765833145219,0.23320079,85763.0,85762.0,0.059]
[1765833145441,0.2332212,85756.0,85752.0,0.01852]
[1765833145640,0.01166085,85757.0,85752.0,0.01852]
[1765833145641,0.23322799,85753.0,85752.0,0.01852]
[1765833145811,0.23322527,85754.0,85753.0,0.04861]
[1765833146140,0.23322527,85754.0,85753.0,0.08166]
[1765833147545,0.23322527,85754.0,85753.0,0.03305]
[1765833147786,0.23322527,85754.0,85752.0,0.002]
[1765833147787,0.23322799,85753.0,85752.0,0.002]
[1765833148008,0.23322799,85753.0,85741.0,0.24492311]
[1765833148009,0.01166235,85746.0,85741.0,0.24492311]
[1765833148216,0.23325204,85745.0,85743.0,0.026332]
[1765833148439,0.23325247,85744.0,85743.0,0.026332]
[1765833149385,0.23325204,85745.0,85743.0,0.028332]
[1765833149589,0.23325204,85745.0,85743.0,0.026332]
[1765833149942,0.24490947,85746.0,85743.0,0.30819551]
[1765833150240,0.23324703,85746.0,85745.0,0.03305]
[1765833150738,0.01166207,85748.0,85745.0,0.04471248]
[1765833150940,0.23324431,85747.0,85746.0,0.03466]
[1765833151100,0.24490403,85748.0,85746.0,0.03466]
[1765833151511,0.23324431,85747.0,85746.0,0.03466]
[1765833151910,0.23324431,85747.0,85746.0,0.001]
[1765833152124,0.23324431,85747.0,85746.0,0.03646]
[1765833153073,0.23324431,85747.0,85746.0,0.03746]
[1765833153425,0.23324431,85747.0,85746.0,0.03646]
[1765833153770,0.24490865,85748.0,85746.0,0.03746]
[1765833154934,0.23324431,85747.0,85746.0,0.08878]
[1765833155081,0.23324431,85747.0,85746.0,0.08978]
[1765833156296,0.23324431,85747.0,85746.0,0.09078]
[1765833156497,0.24490865,85748.0,85746.0,0.08978]
[1765833156712,0.01166126,85754.0,85748.0,0.23324159]
[1765833156933,0.01166153,85752.0,85748.0,0.26870159]
[1765833157226,0.23323615,85750.0,85749.0,0.05332]
[1765833158812,0.23323615,85750.0,85749.0,0.08878]
[1765833159089,0.23323615,85750.0,85749.0,0.08978]
[1765833159852,0.24489224,85752.0,85749.0,0.08978]
[1765833160040,0.23323417,85751.0,85750.0,0.08878]
[1765833161391,0.23323417,85751.0,85750.0,0.08978]
[1765833161736,0.24489224,85752.0,85750.0,0.08978]
[1765833161989,0.24489224,85752.0,85751.0,0.08878]
[1765833163079,0.24488802,85754.0,85751.0,0.32201343]
[1765833163289,0.24488802,85754.0,85752.0,0.05332]
[1765833163511,0.24488802,85754.0,85753.0,0.02701]
[1765833163740,0.34978708,85767.0,85753.0,0.02701]
[1765833163741,0.01165922,85769.0,85763.0,0.01166003]
[1765833163951,0.01165881,85772.0,85769.0,0.06247]
[1765833164154,0.23317908,85771.0,85769.0,0.03866922]
[1765833164356,0.23317908,85771.0,85770.0,0.05332]
[1765833164559,0.23317908,85771.0,85770.0,0.08878]
[1765833164799,0.23317908,85771.0,85770.0,0.03546]
[1765833165836,0.23317908,85771.0,85770.0,0.03646]
[1765833166264,0.02505894,85772.0,85770.0,0.08978]
[1765833166567,0.24483338,85773.0,85771.0,0.03546]
[1765833166772,0.23317904,85771.0,85770.0,0.001]
[1765833167176,0.23317904,85771.0,85770.0,0.03646]
[1765833167371,0.23317904,85771.0,85770.0,0.08978]
[1765833167925,0.23317904,85771.0,85770.0,0.08878]
[1765833168154,0.23317632,85772.0,85770.0,0.08878]
[1765833168406,0.23317632,85772.0,85771.0,0.08878]
[1765833169957,0.23317632,85772.0,85771.0,0.03546]
[1765833171187,0.23318176,85770.0,85769.0,0.02701]
[1765833172931,0.24483746,85772.0,85769.0,0.11579]
[1765833173095,0.23317968,85771.0,85769.0,0.11579]
[1765833173653,0.23318176,85770.0,85769.0,0.11579]
[1765833174433,0.23317951,85771.0,85769.0,0.11579]
[1765833174613,0.23317951,85771.0,85769.0,0.06247]
[1765833174614,0.23318176,85770.0,85769.0,0.06247]
[1765833174815,0.2448405,85772.0,85769.0,0.02701]
[1765833175017,0.2448405,85772.0,85769.0,0.06247]
[1765833175213,0.23317952,85771.0,85770.0,0.05332]
[1765833176519,0.0116584,85775.0,85770.0,0.10043908]
[1765833176740,0.23316619,85776.0,85774.0,0.03546]
[1765833176916,0.23316619,85776.0,85775.0,0.03546]
[1765833177121,0.23316619,85776.0,85775.0,0.08878]
[1765833180496,0.23317904,85771.0,85770.0,0.00161287]
[1765833180870,0.23317904,85771.0,85770.0,0.09039287]
[1765833181731,0.23317903,85772.0,85770.0,0.09139287]
[1765833181908,0.23317904,85771.0,85770.0,0.03907287]
[1765833182438,0.24483276,85773.0,85770.0,0.28391125]
[1765833182638,0.0116584,85775.0,85772.0,0.03383]
[1765833182784,0.23317632,85772.0,85771.0,0.0509]
[1765833183190,0.23317632,85772.0,85771.0,0.08473]
[1765833183507,0.01165827,85776.0,85771.0,0.08473]
[1765833183508,0.0064,85794.0,85783.0,0.01165732]
[1765833183709,0.0117702,85794.0,85792.0,0.02584]
[1765833184013,0.00011438,85794.0,85793.0,0.31784925]
[1765833184427,0.23323091,85794.0,85793.0,0.08473]
[1765833184838,0.23623091,85794.0,85793.0,0.08473]
[1765833185167,0.23323091,85794.0,85793.0,0.08473]
[1765833185978,0.00011438,85794.0,85793.0,0.08473]
[1765833186183,0.00011438,85794.0,85793.0,0.34277404]
[1765833186372,0.23346355,85814.0,85810.0,0.01165365]
[1765833186573,0.23346355,85814.0,85813.0,0.03383]
[1765833186574,0.0004,85814.0,85813.0,0.03383]
[1765833187005,0.0004,85814.0,85813.0,0.08473]
[1765833187982,0.23306492,85813.0,85812.0,0.02584]
[1765833188205,0.23306763,85812.0,85810.0,0.00161287]
[1765833189524,0.23306973,85812.0,85810.0,0.00161287]
[1765833190321,0.23306973,85812.0,85810.0,0.05251287]
[1765833190530,0.23306973,85812.0,85810.0,0.00161287]
[1765833190732,0.24472132,85813.0,85810.0,0.00161287]
[1765833190733,0.01165324,85813.0,85810.0,0.00161287]
[1765833190954,0.23307035,85811.0,85810.0,0.05251287]
[1765833191202,0.01165569,85795.0,85792.0,0.27061798]
[1765833191365,0.01165514,85799.0,85793.0,0.24477521]
[1765833191522,0.23310918,85797.0,85795.0,0.03383]
[1765833191727,0.23311653,85794.0,85793.0,0.00161287]
[1765833192127,0.23311407,85795.0,85793.0,0.08634287]
[1765833192339,0.23311653,85794.0,85793.0,0.08634287]
[1765833192714,0.23311653,85794.0,85793.0,0.00161287]
[1765833192951,0.23311653,85794.0,85793.0,0.03544287]
[1765833193178,0.23311653,85794.0,85793.0,0.08634287]
[1765833193519,0.23311653,85794.0,85793.0,0.08734287]
[1765833193772,0.23311653,85794.0,85793.0,0.08634287]
[1765833193941,0.23311653,85794.0,85793.0,0.00161287]
[1765833194157,0.23311653,85794.0,85793.0,0.00361287]
[1765833194670,0.23311653,85794.0,85793.0,0.00261287]
[1765833195518,0.23311653,85794.0,85793.0,0.00161287]
[1765833195725,0.23311653,85794.0,85793.0,0.00261287]
[1765833196146,0.23311653,85794.0,85793.0,0.00361287]
[1765833196553,0.23311653,85794.0,85793.0,0.00161287]
[1765833197163,0.2331274,85790.0,85789.0,0.02584]
[1765833197325,0.01165704,85785.0,85780.0,0.03749772]
[1765833197529,0.01165718,85784.0,85780.0,0.02584]
[1765833197764,0.23315186,85781.0,85780.0,0.07674]
[1765833198339,0.23315186,85781.0,85772.0,0.24483464]
[1765833198340,0.0116584,85775.0,85772.0,0.0509]
[1765833198542,0.24482657,85775.0,85772.0,0.0509]
[1765833198779,0.24482657,85775.0,85774.0,0.03383]
[1765833199022,0.24482657,85775.0,85774.0,0.08473]
[1765833199240,0.0116584,85775.0,85774.0,0.08473]
[1765833199456,0.24482657,85775.0,85774.0,0.08473]
[1765833199864,0.24482657,85775.0,85774.0,0.002]
[1765833200618,0.24482657,85775.0,85774.0,0.004]
[1765833201046,0.24482657,85775.0,85774.0,0.002]
[1765833201449,0.24482657,85775.0,85774.0,0.001]
[1765833201776,0.0116584,85775.0,85774.0,0.002]
[1765833201919,0.0116584,85775.0,85774.0,0.001]
[1765833202121,0.05495488,85775.0,85774.0,0.001]
[1765833202426,0.06661328,85775.0,85774.0,0.001]
[1765833202627,0.06661328,85775.0,85772.0,0.01165881]
[1765833203210,0.0116584,85775.0,85772.0,0.244833]
[1765833204807,0.24482706,85775.0,85772.0,0.244833]
[1765833205363,0.24482706,85775.0,85772.0,0.01165881]
[1765833205549,0.23317131,85774.0,85771.0,0.25901652]
[1765833205947,0.24482943,85774.0,85771.0,0.03749895]
[1765833206147,0.2331759,85773.0,85771.0,0.02584]
[1765833206400,0.24482706,85775.0,85771.0,0.27067754]
[1765833206562,0.23317101,85774.0,85771.0,0.03749895]
[1765833206762,0.23317101,85774.0,85771.0,0.03849895]
[1765833207160,0.23317435,85773.0,85771.0,0.02584]
[1765833207399,0.23317632,85772.0,85769.0,0.01165922]
[1765833207702,0.23317153,85774.0,85772.0,0.03383]
[1765833208773,0.2331736,85773.0,85771.0,0.02584]
[1765833209091,0.24493002,85773.0,85772.0,0.001]
[1765833209436,0.25160002,85773.0,85772.0,0.001]
[1765833210043,0.24493002,85773.0,85772.0,0.001]
[1765833210364,0.23318294,85770.0,85767.0,0.2448444]
[1765833210731,0.24484202,85770.0,85767.0,0.2448444]
[1765833211248,0.24483803,85771.0,85767.0,0.2448444]
[1765833211453,0.24483803,85771.0,85768.0,0.24484442]
[1765833211675,0.23318273,85770.0,85767.0,0.2448444]
[1765833211849,0.23318529,85769.0,85767.0,0.001]
[1765833212056,0.2331872,85768.0,85767.0,0.001]
[1765833212253,0.24484132,85770.0,85766.0,0.01165963]
[1765833212441,0.23318686,85769.0,85768.0,0.001]
[1765833213095,0.01165908,85770.0,85768.0,0.001]
[1765833213292,0.01165895,85771.0,85768.0,0.001]
[1765833213466,0.23318414,85770.0,85768.0,0.001]
[1765833213668,0.24483845,85771.0,85768.0,0.001]
[1765833214076,0.23317836,85772.0,85768.0,0.24584556]
[1765833214390,0.2331802,85771.0,85768.0,0.24484556]
[1765833214863,0.2331802,85771.0,85768.0,0.24584556]
[1765833215266,0.24483717,85772.0,85769.0,0.24484298]
[1765833215471,0.01175642,85773.0,85769.0,0.24484298]
[1765833215472,9.774e-05,85773.0,85770.0,0.24484084]
[1765833215713,9.774e-05,85773.0,85772.0,0.23317632]
[1765833216130,9.774e-05,85773.0,85770.0,0.24484084]
[1765833216481,0.01175642,85773.0,85769.0,0.2695215]
[1765833216681,0.23317904,85771.0,85770.0,0.001]
[1765833217279,0.24483586,85772.0,85770.0,0.001]
[1765833217489,0.23828904,85771.0,85770.0,0.001]
[1765833217694,0.24339904,85771.0,85770.0,0.001]
[1765833217898,0.23320623,85761.0,85760.0,0.00161287]
[1765833218888,0.24486116,85763.0,85760.0,0.00161287]
[1765833219096,0.01165976,85765.0,85762.0,0.26574273]
[1765833219440,0.24484686,85768.0,85763.0,0.23320079]
[1765833219569,0.23319541,85765.0,85762.0,0.04420017]
[1765833219772,0.23320623,85761.0,85760.0,0.00161287]
[1765833220248,0.23320623,85761.0,85760.0,0.00361287]
[1765833220451,0.23320623,85761.0,85760.0,0.00161287]
[1765833220656,0.23320351,85762.0,85760.0,0.00161287]
[1765833220867,0.23320623,85761.0,85760.0,0.00161287]
[1765833221095,0.23320623,85761.0,85760.0,0.00261287]
[1765833221285,0.23320351,85762.0,85760.0,0.00461287]
[1765833221465,0.23320623,85761.0,85760.0,0.00161287]
[1765833221805,0.23320397,85762.0,85760.0,0.00261287]
[1765833222023,0.23320397,85762.0,85760.0,0.00461287]
[1765833222318,0.23320623,85761.0,85760.0,0.00361287]
[1765833222462,0.23320623,85761.0,85760.0,0.00461287]
[1765833222807,0.23320397,85762.0,85760.0,0.00461287]
[1765833223008,0.01166003,85763.0,85760.0,0.24948218]
[1765833223261,0.24486333,85763.0,85760.0,0.30004131]
[1765833223440,0.24486333,85763.0,85760.0,0.06683331]
[1765833223737,0.24486333,85763.0,85760.0,0.30004104]
[1765833223942,0.24486333,85763.0,85760.0,0.29904104]
[1765833224180,0.24486333,85763.0,85760.0,0.30004104]
[1765833224406,0.24486333,85763.0,85760.0,0.29804104]
[1765833224776,0.24486333,85763.0,85760.0,0.29904104]
[1765833224940,0.24486333,85763.0,85760.0,0.29804104]
[1765833225341,0.24486333,85763.0,85760.0,0.29904104]
[1765833225881,0.24486333,85763.0,85761.0,0.2332057]
[1765833226596,0.01166003,85763.0,85761.0,0.2332057]
[1765833226897,0.01165908,85770.0,85768.0,0.23318511]
[1765833227069,0.23317152,85774.0,85769.0,0.03254]
[1765833227250,0.24481972,85778.0,85772.0,0.29039632]
[1765833227452,0.011658,85778.0,85772.0,0.29039632]
[1765833227651,0.24482035,85778.0,85772.0,0.34095632]
[1765833227868,0.01165813,85777.0,85772.0,0.34095632]
[1765833228273,0.24481569,85779.0,85772.0,0.34095632]
[1765833228461,0.24481809,85778.0,85772.0,0.34095632]
[1765833228661,0.01165786,85779.0,85772.0,0.34095632]
[1765833229517,0.01165745,85782.0,85772.0,0.34256919]
[1765833229767,0.02504564,85789.0,85772.0,0.34256919]
[1765833229961,0.01165528,85798.0,85772.0,0.36108919]
[1765833230085,0.70124617,85790.0,85772.0,0.36108919]
[1765833230524,0.0116565,85789.0,85772.0,0.36108919]
[1765833230762,0.01165609,85792.0,85772.0,0.36108919]
[1765833230961,0.01165609,85792.0,85772.0,0.36408919]
[1765833230962,0.70124617,85790.0,85772.0,0.36408919]
[1765833231305,0.70124617,85790.0,85772.0,0.36508919]
[1765833231456,0.71290254,85790.0,85772.0,0.36508919]
[1765833231623,0.24478224,85791.0,85772.0,0.36408919]
[1765833231827,0.01165637,85790.0,85772.0,0.36408919]
[1765833232072,0.01165609,85792.0,85772.0,0.36708919]
[1765833232478,0.01165596,85793.0,85772.0,0.36708919]
[1765833232678,0.24477538,85793.0,85772.0,0.36708919]
[1765833232842,0.01165664,85788.0,85772.0,0.36708919]
[1765833233364,0.01165677,85787.0,85772.0,0.36708919]
[1765833233565,0.01165664,85788.0,85772.0,0.36708919]
[1765833233947,0.94603233,85790.0,85772.0,0.36708919]
[1765833234282,0.23327134,85773.0,85772.0,0.13391287]
[1765833234439,0.25776431,85773.0,85772.0,0.00761287]
[1765833234644,9.774e-05,85773.0,85772.0,0.09071287]
[1765833234844,9.774e-05,85773.0,85772.0,0.32388919]
[1765833235034,9.774e-05,85773.0,85772.0,0.32088919]
[1765833235229,0.23327134,85773.0,85772.0,0.03415287]
[1765833235443,9.774e-05,85773.0,85772.0,0.31788919]
[1765833235689,9.774e-05,85773.0,85772.0,0.08671287]
[1765833235865,0.23327134,85773.0,85772.0,0.002]
[1765833236477,0.31021136,85773.0,85772.0,0.004]
[1765833236688,0.31021136,85773.0,85772.0,0.002]
[1765833236905,0.31021136,85773.0,85758.0,0.03634071]
[1765833236906,0.01166031,85761.0,85758.0,0.02468]
[1765833237126,0.24485797,85764.0,85759.0,0.06222058]
[1765833237253,0.24485797,85764.0,85759.0,0.29543215]
[1765833237254,0.23320486,85762.0,85759.0,0.29543215]
[1765833237482,0.23320894,85761.0,85759.0,0.05056]
[1765833237692,0.24486925,85761.0,85760.0,0.05056]
[1765833237900,0.24486925,85761.0,85760.0,0.0831]
[1765833238568,0.24486425,85762.0,85760.0,0.0831]
[1765833238770,0.24486425,85762.0,85761.0,0.0831]
[1765833240466,0.01166003,85763.0,85761.0,0.10778]
[1765833240689,0.24486082,85763.0,85762.0,0.0831]
[1765833241321,0.24485944,85764.0,85762.0,0.0831]
[1765833241532,0.24485944,85764.0,85762.0,0.03254]
[1765833242046,0.24485944,85764.0,85762.0,0.03354]
[1765833242262,0.24485944,85764.0,85762.0,0.001]
[1765833242263,0.23512079,85763.0,85762.0,0.001]
[1765833242471,0.23320079,85763.0,85762.0,0.001]
[1765833243319,0.23320079,85763.0,85762.0,0.002]
[1765833243746,0.23320079,85763.0,85762.0,0.001]
[1765833243941,0.23320079,85763.0,85758.0,0.00161287]
[1765833243942,0.23321167,85759.0,85758.0,0.00161287]
[1765833245193,0.23321167,85759.0,85758.0,0.00361287]
[1765833245388,0.23321167,85759.0,85758.0,0.05460287]
[1765833245855,0.23321167,85759.0,85758.0,0.00361287]
[1765833246290,0.23321167,85759.0,85758.0,0.00561287]
[1765833247046,0.3303119,85759.0,85758.0,0.00561287]
[1765833247302,0.23353167,85759.0,85758.0,0.00561287]
[1765833247677,0.23321167,85759.0,85758.0,0.00561287]
[1765833247998,0.23320983,85760.0,85758.0,0.00561287]
[1765833248158,0.23321167,85759.0,85758.0,0.00561287]
[1765833248363,0.23321167,85759.0,85758.0,0.00361287]
[1765833248565,0.24486082,85763.0,85759.0,0.23321058]
[1765833248783,0.24486082,85763.0,85758.0,0.03728287]
[1765833248784,0.23320623,85761.0,85760.0,0.03367]
[1765833249192,0.01165963,85766.0,85762.0,0.01166017]
[1765833249393,0.0004,85814.0,85769.0,0.05689]
[1765833249394,0.01165827,85776.0,85769.0,0.05689]
[1765833249604,0.01165895,85771.0,85769.0,0.05689]
[1765833249804,0.01165895,85771.0,85769.0,0.10788]
[1765833250002,0.23318176,85770.0,85769.0,0.10788]
[1765833250703,0.23318176,85770.0,85769.0,0.05689]
[1765833251492,0.23318176,85770.0,85769.0,0.05889]
[1765833251696,0.23318131,85771.0,85769.0,0.05889]
[1765833252228,0.23318131,85771.0,85769.0,0.29207391]
[1765833252430,0.23318131,85771.0,85769.0,0.002]
[1765833252431,0.23318176,85770.0,85769.0,0.002]
[1765833252574,0.23318131,85771.0,85770.0,0.03367]
[1765833253388,0.01165908,85770.0,85763.0,0.01166003]
[1765833253603,0.23318507,85769.0,85767.0,0.23318966]
[1765833253850,0.23318507,85769.0,85766.0,0.23319199]
[1765833253997,0.24484345,85770.0,85767.0,0.28417906]
[1765833254420,0.24484345,85770.0,85767.0,0.28417971]
[1765833254658,0.01165922,85769.0,85767.0,0.28417971]
[1765833254836,0.24484345,85770.0,85767.0,0.2968392]
[1765833255715,0.24483584,85772.0,85769.0,0.03367]
[1765833255716,0.23318047,85771.0,85769.0,0.03367]
[1765833255924,0.23318047,85771.0,85769.0,0.26685309]
[1765833256274,0.23318047,85771.0,85770.0,0.08466]
[1765833256864,0.23318047,85771.0,85770.0,0.03367]
[1765833257176,0.23318176,85770.0,85769.0,0.001]
[1765833257385,0.23319512,85766.0,85764.0,0.02322]
[1765833258164,0.23320079,85763.0,85762.0,0.00161287]
[1765833260811,0.24485492,85766.0,85762.0,0.00161287]
[1765833261014,0.24485298,85766.0,85763.0,0.24485848]
[1765833261557,0.24485511,85765.0,85762.0,0.01327304]
[1765833261783,0.23319807,85764.0,85762.0,0.01327304]
[1765833262657,0.24485511,85765.0,85762.0,0.24647602]
[1765833262884,0.23320079,85763.0,85762.0,0.00161287]
[1765833263102,0.23320079,85763.0,85753.0,0.25644556]
[1765833263103,0.01166207,85748.0,85745.0,0.07421]
[1765833263309,0.01166207,85748.0,85743.0,0.02322]
[1765833263310,0.01166235,85746.0,85743.0,0.02322]
[1765833263528,0.23325247,85744.0,85743.0,0.02322]
[1765833264379,0.23325203,85745.0,85743.0,0.02322]
[1765833264640,9.768e-05,85744.0,85743.0,0.02322]
[1765833264849,0.23335015,85744.0,85743.0,0.02322]
[1765833265040,0.30916609,85744.0,85743.0,0.002]
[1765833265404,0.23335015,85744.0,85743.0,0.002]
[1765833265582,0.23335015,85744.0,85743.0,0.003]
[1765833265787,0.23335015,85744.0,85743.0,0.005]
[1765833266523,0.23335015,85744.0,85743.0,0.003]
[1765833266883,0.24492595,85741.0,85738.0,0.23326836]
[1765833267284,0.23326412,85740.0,85737.0,0.26815238]
[1765833267507,0.23326335,85740.0,85737.0,0.08587357]
[1765833267689,0.24492595,85741.0,85738.0,0.05099]
[1765833268244,0.24492595,85741.0,85735.0,0.01852]
[1765833268245,0.01166343,85738.0,85735.0,0.01852]
[1765833268472,0.23328784,85731.0,85730.0,0.02322]
[1765833269859,0.23328579,85732.0,85730.0,0.02422]
[1765833270299,0.01166412,85733.0,85730.0,0.02422]
[1765833270450,0.03427823,85733.0,85731.0,0.03367]
[1765833270655,0.01166412,85733.0,85731.0,0.03367]
[1765833271004,0.01166412,85733.0,85731.0,0.07881]
[1765833271221,0.24493849,85736.0,85733.0,0.24494468]
[1765833271388,0.06013676,85736.0,85733.0,0.24494468]
[1765833271611,0.24493747,85737.0,85733.0,0.29008468]
[1765833271743,0.23327873,85735.0,85733.0,0.04514]
[1765833271961,0.23327873,85735.0,85731.0,0.24495112]
[1765833271962,0.24494257,85735.0,85731.0,0.24595112]
[1765833272211,0.24494257,85735.0,85732.0,0.01166425]
[1765833272645,0.01166384,85735.0,85733.0,0.23328172]
[1765833272865,0.24493747,85737.0,85733.0,0.29510584]
[1765833273072,0.24493747,85737.0,85734.0,0.23327954]
[1765833273300,0.23326415,85740.0,85736.0,0.23327197]
[1765833273505,0.24492731,85740.0,85736.0,0.24493568]
[1765833273722,0.24492731,85740.0,85737.0,0.24493505]
[1765833274126,0.01166316,85740.0,85738.0,0.23326803]
[1765833274339,0.01166303,85741.0,85737.0,0.24493505]
[1765833274783,0.2449289,85740.0,85737.0,0.24493505]
[1765833274992,0.2449289,85740.0,85737.0,0.01166357]
[1765833275408,0.23326664,85739.0,85737.0,0.01166357]
[1765833276465,0.2332714,85738.0,85736.0,0.23327368]
[1765833276670,0.0116633,85739.0,85736.0,0.01166371]
[1765833276881,0.24493468,85738.0,85735.0,0.24494038]
[1765833278377,0.01166357,85737.0,85734.0,0.01166398]
[1765833278569,0.23327649,85736.0,85732.0,0.24494937]
[1765833278742,0.2449402,85736.0,85733.0,0.23328202]
[1765833278949,0.01166371,85736.0,85733.0,0.28244132]
[1765833279224,0.24493722,85737.0,85734.0,0.24494361]
[1765833279426,0.24493271,85738.0,85735.0,0.24493966]
[1765833280068,0.01166343,85738.0,85735.0,0.24494066]
[1765833280526,0.24493261,85738.0,85735.0,0.24494066]
[1765833280961,0.23327217,85737.0,85735.0,0.24494066]
[1765833281250,0.24493261,85738.0,85735.0,0.24494066]
[1765833281862,0.24493261,85738.0,85736.0,0.23327395]
[1765833282471,0.23327318,85737.0,85735.0,0.01166384]
[1765833282681,0.23327318,85737.0,85735.0,0.24493988]
[1765833283084,0.23327817,85735.0,85733.0,0.06082412]
[1765833283472,0.23327656,85736.0,85734.0,0.23327962]
[1765833283679,0.23327656,85736.0,85733.0,0.29410176]
[1765833283910,0.23327656,85736.0,85730.0,0.23328944]
[1765833283911,0.01166412,85733.0,85730.0,0.23328944]
[1765833284116,0.23328723,85732.0,85730.0,0.01166452]
[1765833284448,0.01166425,85732.0,85728.0,0.02322]
[1765833284592,0.01166439,85731.0,85730.0,0.04916]
[1765833285023,0.24495209,85732.0,85730.0,0.08154]
[1765833285248,0.0779248,85732.0,85730.0,0.08154]
[1765833285648,0.24494387,85734.0,85730.0,0.09320452]
[1765833285853,0.24494387,85734.0,85731.0,0.28244576]
[1765833286056,0.24494387,85734.0,85731.0,0.29411015]
[1765833286441,0.24493462,85738.0,85734.0,0.23327807]
[1765833286642,0.24493718,85737.0,85733.0,0.24494448]
[1765833287069,0.23326645,85739.0,85736.0,0.01166371]
[1765833287628,9.768e-05,85744.0,85740.0,0.01166316]
[1765833287850,9.768e-05,85744.0,85743.0,0.28944519]
[1765833288062,0.9634897,85770.0,85760.0,0.01166044]
[1765833288276,0.02504236,85769.0,85768.0,0.03646936]
[1765833288487,0.24482102,85777.0,85773.0,0.23317269]
[1765833288715,0.01165827,85776.0,85772.0,0.03138]
[1765833288932,0.01166003,85763.0,85760.0,0.04927438]
[1765833289117,0.01166003,85763.0,85760.0,0.00011438]
[1765833289334,0.01165895,85771.0,85766.0,0.01165963]
[1765833289515,0.2331833,85770.0,85766.0,0.24484957]
[1765833289727,0.2448437,85769.0,85767.0,0.04916]
[1765833290154,0.2331872,85768.0,85767.0,0.04916]
[1765833290351,0.23319355,85766.0,85765.0,0.04916]
[1765833290546,0.23319355,85766.0,85763.0,0.24485934]
[1765833290547,0.24485318,85766.0,85764.0,0.04916]
[1765833290852,0.01165949,85767.0,85764.0,0.29401747]
[1765833291098,0.01165936,85768.0,85764.0,0.29401747]
[1765833291356,0.01165936,85768.0,85765.0,0.24485464]
[1765833291570,0.01165936,85768.0,85765.0,0.29401464]
[1765833291782,0.23319099,85767.0,85765.0,0.04916]
[1765833291963,0.24484742,85768.0,85765.0,0.04916]
[1765833292188,0.24484261,85770.0,85765.0,0.06081976]
[1765833292417,0.01165908,85770.0,85768.0,0.23318706]
[1765833292602,0.24484093,85770.0,85767.0,0.01165949]
[1765833292810,0.24484093,85770.0,85768.0,0.04916]
[1765833293387,0.24484093,85770.0,85768.0,0.28234719]
[1765833294235,0.24484093,85770.0,85768.0,0.04916]
[1765833294436,0.01165908,85770.0,85768.0,0.28234699]
[1765833294610,0.03674257,85773.0,85768.0,0.28234699]
[1765833294611,0.03674257,85773.0,85769.0,0.06784922]
[1765833294807,0.24483285,85773.0,85771.0,0.03138]
[1765833295064,0.23317904,85771.0,85769.0,0.02481]
[1765833295254,0.23317916,85771.0,85769.0,0.02481]
[1765833295459,0.24483531,85772.0,85769.0,0.25799408]
[1765833296030,0.01165976,85765.0,85761.0,0.06082031]
[1765833296280,0.0116584,85775.0,85771.0,0.05619]
[1765833296508,0.2812377,85780.0,85774.0,0.09119854]
[1765833296509,0.01165772,85780.0,85774.0,0.09119854]
[1765833296712,0.23315434,85781.0,85779.0,0.05619]
[1765833296930,0.23315458,85780.0,85779.0,0.02481]
[1765833297148,0.24482164,85777.0,85773.0,0.2331712]
[1765833297367,0.01165813,85777.0,85774.0,0.28232958]
[1765833297615,0.02508389,85779.0,85764.0,0.01852]
[1765833297616,0.23319535,85765.0,85764.0,0.01852]
[1765833298665,0.23320079,85763.0,85760.0,0.00011438]
[1765833299342,0.23320079,85763.0,85760.0,0.01177482]
[1765833299478,0.23320079,85763.0,85760.0,0.00011438]
[1765833299861,0.23320079,85763.0,85762.0,0.02581]
[1765833300082,0.23320079,85763.0,85762.0,0.02681]
[1765833300296,0.2331933,85766.0,85762.0,0.34055255]
[1765833300297,0.01165963,85766.0,85762.0,0.34055255]
[1765833300501,0.23319942,85764.0,85762.0,0.10735]
[1765833300704,0.26001862,85763.0,85762.0,0.002]
[1765833301105,0.23320623,85761.0,85760.0,0.00011438]
[1765833301305,0.28322462,85761.0,85760.0,0.00011438]
[1765833302144,0.57392462,85761.0,85760.0,4.38e-06]
[1765833302301,0.57392462,85761.0,85725.0,0.29343697]
[1765833302302,0.01166466,85729.0,85725.0,0.29343697]
[1765833302487,0.01166466,85729.0,85726.0,0.02325]
[1765833302699,0.23329066,85730.0,85728.0,0.0427048]
[1765833302904,0.01166439,85731.0,85729.0,0.03104]
[1765833303122,0.01166439,85731.0,85730.0,0.03104]
[1765833303302,0.24494959,85732.0,85730.0,0.07951]
[1765833303502,0.24494959,85732.0,85731.0,0.03104]
[1765833303702,0.01166425,85732.0,85731.0,0.07951]
[1765833304559,0.23328407,85733.0,85731.0,0.07951]
[1765833304777,0.2332824,85733.0,85732.0,0.03104]
[1765833305122,0.24493352,85738.0,85732.0,0.03104]
[1765833305123,0.01166262,85744.0,85739.0,0.0116633]
[1765833305295,0.01166112,85755.0,85749.0,0.01166194]
[1765833305497,0.02507291,85760.0,85746.0,0.01166235]
[1765833305498,0.01166194,85749.0,85746.0,0.01166235]
[1765833305658,0.01166194,85749.0,85747.0,0.23324422]
[1765833305862,0.0116618,85750.0,85748.0,0.03104]
[1765833306063,0.2582873,85759.0,85748.0,0.03104]
[1765833306064,0.23322401,85755.0,85750.0,0.23323615]
[1765833308331,0.24489636,85751.0,85750.0,0.07851]
[1765833308776,0.24488771,85754.0,85750.0,0.32340584]
[1765833308946,0.24488771,85754.0,85751.0,0.07951]
[1765833309311,0.23322799,85753.0,85751.0,0.03104]
[1765833309496,0.01166126,85754.0,85751.0,0.03104]
[1765833309716,0.01166126,85754.0,85753.0,0.02325]
[1765833309916,0.24489188,85754.0,85753.0,0.02325]
[1765833310351,0.23320623,85761.0,85753.0,0.10437287]
[1765833310557,0.09182088,85779.0,85753.0,0.10437287]
[1765833310558,0.01165908,85770.0,85765.0,0.02325]
[1765833310757,0.01165908,85770.0,85765.0,0.25644523]
[1765833310967,0.01165908,85770.0,85766.0,0.04847]
[1765833311170,0.01166316,85740.0,85734.0,0.02325]